Cogmind - Beta 10.2 @@@ ROGUE MODE // 2021.05.18 @ 12:51:58 Player: thingamajigger Result: Destroyed by Y-72 Warden with Quantum Rifle Performance ------------- Evolutions (7) 3500 Regions Visited (26) 5200 Robots Destroyed (360) 1800 Value Destroyed (20638) 20638 Prototype IDs (26) 520 Alien Tech Used (5) 1000 Bonus (8261) 8261 TOTAL SCORE: 40919 Bonus ------- High Alert Combat Kills 2384 Follower Combat Kills 2177 Entered Garrisons 1000 Used RIF Installer 2500 Scanned by Researcher 1000 Friendly Fire -800 Cogmind --------- Core Integrity 0/1300 Matter 210/300 Energy 100/100 System Corruption 38% Temperature Cool (13) Movement Walking (120) Location -3/Section 7 Parts ------- > --- POWER (2) -------- (None) > --- PROPULSION (4) --- Flexi-carbon Leg > --- UTILITY (11) ----- System Shield > --- WEAPON (4) ------- Advanced Remote Datajack > --- INVENTORY (4) ---- Large Storage Unit Matter Compressor (250) EM Shield Advanced Force Field Peak State ------------ > --- POWER ------------ Reinforced Fission Core Micro Fission Core > --- PROPULSION ------- Armored Heavy Treads Improved Heavy Siege Treads > --- UTILITY ---------- Advanced Cooling System Advanced Coolant Injector Large Storage Unit Large Storage Unit Large Storage Unit Large Storage Unit Advanced Energy Well Advanced Sensor Array Advanced Signal Interpreter Improved Utility Shielding Layered Medium Armor Plating > --- WEAPON ----------- Nova Cannon Coil Gun Sigix Broadsword > --- INVENTORY -------- Particle Reactor Biometal Medium Treads Biometal Medium Treads Armored Heavy Treads Advanced Power Amplifier Advanced Heat Sink Matter Compressor Matter Compressor Improved Overload Amplifier Advanced Focal Shield Advanced Thermal Shield EM Shield Advanced Force Field Relay Coupler [Grunt] Mini Drone Bay Subatomic Replicator Terrabomb Stasis Generator Gamma Rifle Variable Charge Gun Matter Neutralizer Railgun Improved Proton Missile Launcher Heavy Shock Bomb Launcher Sigix Terminator Advanced Remote Datajack [Rating: 146] Favorites ----------- Power Reinforced Ion Engine Engine Reinforced Ion Engine Power Core Neutrino Core Reactor Particle Reactor Propulsion Light Treads Treads Light Treads Leg Aluminum Leg Wheel Armored Wheel Utility High-capacity Storage Unit Device Advanced Heat Sink Storage High-capacity Storage Unit Processor Advanced Targeting Computer Hackware Relay Coupler [Sentry] Protection Heavy Reactive Plating Artifact Stasis Generator Weapon Coil Gun Energy Gun Precision Shock Rifle Energy Cannon Phase Cannon Ballistic Gun Coil Gun Ballistic Cannon Hardcell Cannon Launcher EMP Blaster Special Weapon Remote Datajack Slashing Weapon Sigix Broadsword Special Melee Weapon Datajack Build | -11 -10 -10 -10 -9 -8 -8 -8 -8 -7 -7 -7 -7 -6 -6 -5 -5 -5 -5 -4 -4 -4 -4 -4 -3 -3 -3 ------- Run | Scr Mat Min Exi Min Mat Gar Mat Gar Fac Gar Fac Gar Fac Gar Fac Upp Upp War Pro Fac Ext Cet Arc Res Qua Sec Slots Evolved 14 | . . . . . 4 . . . 2 . . . 2 . 2 . . . . 2 . . . 2 . . Power 1 | . . . . . . . . . . . . . . . . . . . . . . . . 1 . . Propulsion 2 | . . . . . 1 . . . . . . . . . . . . . . 1 . . . . . . Utility 9 | . . . . . 2 . . . 2 . . . 2 . 2 . . . . . . . . 1 . . Weapon 2 | . . . . . 1 . . . . . . . . . . . . . . 1 . . . . . . Parts Attached 420 | 6 3 1 3 4 21 18 . 9 11 29 . 26 46 22 28 3 1 . 7 4 13 9 7 76 71 2 Power 23 | 1 1 . . 1 1 2 . 1 . . . . 4 . . . . . 1 . . . . 6 5 . Engine 12 | 1 1 . . 1 1 1 . 1 . . . . 4 . . . . . . . . . . . 2 . Core 5 | . . . . . . 1 . . . . . . . . . . . . 1 . . . . 2 1 . Reactor 6 | . . . . . . . . . . . . . . . . . . . . . . . . 4 2 . Propulsion 57 | 2 . . . 2 5 3 . 4 . 3 . 4 4 2 2 . 1 . . 3 1 2 2 4 13 . Treads 43 | 2 . . . . 5 3 . 4 . 3 . 1 . 2 2 . 1 . . 3 1 2 2 4 8 . Leg 8 | . . . . 2 . . . . . . . . 1 . . . . . . . . . . . 5 . Wheel 6 | . . . . . . . . . . . . 3 3 . . . . . . . . . . . . . Hover . | . . . . . . . . . . . . . . . . . . . . . . . . . . . Flight . | . . . . . . . . . . . . . . . . . . . . . . . . . . . Utility 165 | 1 2 . 2 . 5 4 . . 7 10 . 11 15 14 12 1 . . 3 1 5 3 3 44 21 1 Device 40 | . . . . . . . . . . . . . 1 4 . 1 . . . 1 3 1 2 17 10 . Storage 31 | 1 2 . 2 . . 1 . . 1 2 . 3 . 6 . . . . 1 . . . . 10 2 . Processor 14 | . . . . . 2 . . . . . . 1 . 1 3 . . . . . . 1 . 4 2 . Hackware 34 | . . . . . . 2 . . 4 7 . 4 7 1 6 . . . 1 . . . . 1 . 1 Protection 44 | . . . . . 3 1 . . 2 1 . 3 7 2 3 . . . 1 . 2 1 1 12 5 . Artifact 2 | . . . . . . . . . . . . . . . . . . . . . . . . . 2 . Weapon 175 | 2 . 1 1 1 10 9 . 4 4 16 . 11 23 6 14 2 . . 3 . 7 4 2 22 32 1 Energy Gun 29 | 1 . . . . 2 1 . . 1 3 . 1 4 . 1 . . . . . . . . 2 13 . Energy Cannon 8 | . . . . . 1 . . 1 . 1 . 1 . . . . . . . . . . . 2 2 . Ballistic Gun 70 | 1 . . . . 6 2 . 3 1 6 . 3 10 2 6 1 . . . . 5 2 2 13 7 . Ballistic Cannon 3 | . . . . . . . . . . . . . . . . . . . . . . . . 2 1 . Launcher 35 | . . 1 1 1 1 5 . . . 2 . 3 1 3 1 1 . . 2 . 1 2 . 3 7 . Special Weapon 28 | . . . . . . . . . 2 4 . 3 8 1 6 . . . 1 . 1 . . . 1 1 Impact Weapon . | . . . . . . . . . . . . . . . . . . . . . . . . . . . Slashing Weapon 1 | . . . . . . . . . . . . . . . . . . . . . . . . . 1 . Piercing Weapon . | . . . . . . . . . . . . . . . . . . . . . . . . . . . Special Melee Weapon 1 | . . . . . . 1 . . . . . . . . . . . . . . . . . . . . Unidentified Prototypes 16 | . . . . . 1 . . . . . . . 1 . 1 . . . . . . 3 . 1 9 . Parts Lost 140 | . . 1 . 3 4 12 . 6 . 7 . 6 8 2 3 . . . . . 6 2 2 29 47 2 Power 11 | . . . . . . 2 . 1 . . . . . . . . . . . . . . . 4 3 1 Propulsion 35 | . . . . 2 . 3 . 4 . 2 . 3 3 1 . . . . . . 1 1 . 2 12 1 Utility 39 | . . . . . 1 2 . . . . . 1 3 1 1 . . . . . 3 . 1 13 13 . Weapon 55 | . . 1 . 1 3 5 . 1 . 5 . 2 2 . 2 . . . . . 2 1 1 10 19 . Highest Loss Streak 14 | . . 1 . 3 3 7 . 4 . 2 . 2 4 2 1 . . . . . 5 1 1 7 14 2 Average Slot Usage (%) 89 | . 95 86 81 83 96 95 100 99 100 97 92 87 92 81 89 93 93 94 91 86 92 83 83 86 85 29 Engine 5 | . 14 14 14 14 8 4 . 7 7 7 7 7 5 6 5 5 5 5 . . . . . . . . Core 2 | . . . . . . 4 9 1 . . . . . . . . . . 4 5 5 5 5 5 6 3 Treads 14 | . 28 28 28 . 23 26 27 26 23 22 23 12 . 11 12 11 10 11 11 18 21 12 10 8 10 3 Wheel 2 | . . . . . . . . . . . . 7 17 1 . . . . . . . . . . . . Device 4 | . . . . . . . . . . . . . . 5 2 4 5 5 4 2 6 7 14 11 15 3 Storage 18 | . 24 28 28 28 18 17 18 18 19 22 23 9 20 11 17 17 17 17 17 18 15 15 15 21 23 4 Processor 7 | . . . . . 9 9 9 9 7 . . 6 6 6 9 17 17 17 17 15 12 10 15 7 3 . Hackware 6 | . . . . . . 2 9 9 16 21 15 11 11 6 11 11 11 11 8 5 5 4 . 2 . 3 Protection 5 | . . . . . 8 4 . . 1 1 7 9 7 9 8 5 5 5 4 5 5 5 . 5 4 . Energy Gun 1 | . 14 1 . . 1 1 . . . 1 . 5 3 1 . . . . . . . . . 1 3 . Energy Cannon 1 | . . . . . 6 . . 7 4 1 7 1 . . . . . . . . . . . 1 3 . Ballistic Gun 10 | . 14 . . . 16 11 9 18 15 9 . 4 11 10 12 10 11 11 11 10 16 17 20 12 4 . Launcher 3 | . . 13 10 14 1 8 9 . . 1 . 3 . 3 . 4 5 5 4 5 2 2 . . 1 . Special Weapon 1 | . . . . . . . . . 1 5 7 5 3 1 2 . . . . . 1 . . . . 3 Naked Turns . | . . . . . . . . . . . . . . . . . . . . . . . . . . . Heaviest Build 216 | 13 51 53 75 75 88 89 81 90 125 125 119 121 161 165 166 141 141 141 212 212 192 190 190 216 145 28 Greatest Support 160 | 40 40 40 40 20 60 60 60 60 60 60 60 60 44 40 100 100 100 93 93 120 105 160 160 160 140 27 Greatest Overweight (x) 61 | 1 1 1 1 24 4 2 1 2 2 2 1 5 6 21 4 1 2 1 2 2 1 2 61 1 4 1 Average Overweight (x) 1 | . . 1 1 3 1 1 1 1 1 1 1 1 3 2 2 1 1 1 1 1 1 1 17 . . . Largest Inventory Capacity 48 | 6 16 16 20 20 20 20 20 20 28 28 28 28 28 28 28 28 28 28 48 48 40 40 40 44 28 10 Average Capacity 23 | 5 9 16 16 20 20 19 20 20 24 27 28 14 28 13 28 28 28 28 30 44 40 40 40 30 27 9 Most Carried 40 | 1 11 12 18 18 19 19 18 20 28 28 28 28 28 28 28 28 28 28 28 29 39 40 40 39 28 10 Average Carried 21 | . 5 11 15 17 16 15 17 19 22 24 28 12 26 12 27 27 28 28 27 26 31 38 38 26 23 9 Final Capacity 48 | 6 16 16 20 20 20 20 20 20 28 28 28 28 28 28 28 28 28 28 48 40 40 40 40 28 10 4 Final Carried 40 | 1 11 12 17 17 19 17 18 20 26 28 28 28 28 28 27 28 28 28 28 26 39 39 40 28 10 4 Class Distribution -------------------- 16% | Bothacker-Mutant 11% | Hauler-Mutant 10% | Commander-Mutant 10% | Botlord-Mutant 8% | Scavenger-Mutant 7% | Scavenger-Tank 7% | Hauler-Gunner 6% | Mutant 4% | Scavenger-Skirmisher 4% | Hauler-Bomber 3% | Bothacker-Gunner Dominant Class ---------------- Mutant | -10/Materials Mutant | -10/Mines Mutant | -10/Exiles Hauler-Mutant | -9/Mines Hauler-Bomber | -8/Materials Hauler-Mutant | -8/Garrison Commander-Mutant | -8/Materials Bothacker-Bomber | -8/Garrison Bothacker-Gunner | -7/Factory Bothacker-Mutant | -7/Garrison Bothacker-Mutant | -7/Factory Commander-Mutant | -7/Garrison Botlord-Mutant | -6/Factory Scavenger-Mutant | -6/Garrison Botlord-Mutant | -5/Factory Bothacker-Mutant | -5/Upper Caves Bothacker-Mutant | -5/Upper Caves Bothacker-Mutant | -5/Warlord Bothacker-Mutant | -4/Proximity Caves Hauler-Gunner | -4/Factory Hauler-Mutant | -4/Extension Hauler-Tank | -4/Cetus Hauler-Gunner | -4/Archives Scavenger-Tank | -3/Research Scavenger-Skirmisher | -3/Quarantine Mutant | -3/Section 7 Resources | -11 -10 -10 -10 -9 -8 -8 -8 -8 -7 -7 -7 -7 -6 -6 -5 -5 -5 -5 -4 -4 -4 -4 -4 -3 -3 -3 ----------- Run | Scr Mat Min Exi Min Mat Gar Mat Gar Fac Gar Fac Gar Fac Gar Fac Upp Upp War Pro Fac Ext Cet Arc Res Qua Sec Matter Collected 15128 | 284 138 224 . 83 477 646 . 593 146 651 . 1013 1863 729 657 235 68 . 167 82 1011 377 315 2839 2530 . Remotely . | . . . . . . . . . . . . . . . . . . . . . . . . . . . Salvage Created 17952 | 92 493 441 . 93 949 1087 . 624 543 543 . 642 1244 842 569 496 180 . 373 24 869 1162 391 3130 3165 . Parts 878 | . 37 50 . 4 50 60 . 41 19 30 . 38 40 40 28 22 13 . 13 3 38 34 10 163 145 . Haulers Intercepted 6 | . 1 . . . 1 . . . . . . . . . 1 . . . . . . . . 1 2 . Recyclers Shooed 7 | . . . . . 1 . . . . . . . 3 . 1 . . . . . . . . 2 . . Parts Field Recycled . | . . . . . . . . . . . . . . . . . . . . . . . . . . . Retrieved Matter . | . . . . . . . . . . . . . . . . . . . . . . . . . . . Parts Self-Destructed 18 | . . . . . . . . . . . . . . . . 10 5 . 3 . . . . . . . Prevented 27 | . . . . . . . . . . . . . . . . 14 4 . 9 . . . . . . . Kills | -11 -10 -10 -10 -9 -8 -8 -8 -8 -7 -7 -7 -7 -6 -6 -5 -5 -5 -5 -4 -4 -4 -4 -4 -3 -3 -3 ------- Run | Scr Mat Min Exi Min Mat Gar Mat Gar Fac Gar Fac Gar Fac Gar Fac Upp Upp War Pro Fac Ext Cet Arc Res Qua Sec Combat Hostiles Destroyed 313 | . 7 13 . 3 18 25 . 19 10 15 . 20 16 25 7 7 6 . 8 . 12 14 4 42 42 . Melee 1 | . . . . . . . . . . . . . . . . . . . . . . . . . 1 . Guns 142 | . 7 . . . 9 4 . 16 5 9 . 7 16 5 7 2 1 . 1 . 8 4 4 30 7 . Cannons 39 | . . . . . 4 . . 3 5 2 . 1 . . . . . . . . . . . 4 20 . AOE 105 | . . 13 . 3 3 20 . . . 4 . 12 . 18 . 2 5 . 4 . 4 4 . 5 8 . Classes Destroyed 22 | 1 4 3 . 1 4 3 . . 1 . . . 1 . . . . . . . . . . . 4 . Worker 3 | . . . . . 1 . . . . . . . 2 . . . . . . . . . . . . . Builder 6 | . 1 . . . . . . . . . . . . . 1 . . . . . . . . 2 2 . Tunneler 7 | . . 5 . . 1 . . . . . . . 1 . . . . . . . . . . . . . Hauler 6 | . 1 . . . 1 . . . . . . . . . 1 . . . . . . . . 1 2 . Recycler 7 | 1 2 . . . . . . . . . . . 2 . . . . . . . 1 . . 1 . . Mechanic 2 | . . . . . . . . . . . . . . . . . . . . . . . . . 2 . Operator 2 | . . . . . . . . . . . . . 1 . . . . . . . 1 . . . . . Watcher 13 | . 1 . . . 2 . . . . . . . . . 1 . . . . 1 2 1 . 4 1 . Swarmer 94 | . . 7 . . 3 7 . 9 . 9 . 13 . 22 . . 5 . 5 . 4 . . 10 . . Saboteur 2 | . . . . . . . . . . . . . . . . . . . . . . . . . 2 . Grunt 106 | . 7 4 . 1 9 12 . 7 7 5 . 5 10 . 4 4 . . . . 3 8 . 5 15 . Brawler 7 | . . . . . 1 . . 1 1 1 . . . 1 . . . . . . . . . . 2 . Duelist 9 | . . . . 1 . . . 2 1 . . . 2 1 . . . . . . . 1 . . 1 . Protector 2 | . . . . . . 1 . . . . . 1 . . . . . . . . . . . . . . Researcher 4 | . . . . . . . . . . . . . . . . . . . . . . . . . 4 . Sentry 22 | . . . . . 4 3 . . . . . . . . . 1 . . 1 . . . 4 7 2 . Demolisher 2 | . . . . . . 1 . . . . . 1 . . . . . . . . . . . . . . Hunter 21 | . . . . . 1 . . . . . . . . 1 . 1 1 . 2 . 4 1 . 4 6 . Programmer 35 | . . . . . . . . . 1 1 . . 1 . 3 1 . . . . 1 . . 14 13 . Q-Series 1 | . . . . . . . . . . . . . . . . . . . . . . . . . 1 . Behemoth 3 | . . . . . . 1 . . . . . . . . . . . . . . . . . 2 . . Cetus Guard 4 | . . . . . . . . . . . . . . . . . . . . . . 4 . . . . Assembled 5 | . . 2 . . . . . . . . . . 3 . . . . . . . . . . . . . Savage 1 | . . . . . . . . . . . . . . . . . . . . . 1 . . . . . Best Kill Streak 12 | 1 4 6 . 2 6 7 . 12 3 3 . 6 5 8 3 3 6 . 4 1 7 8 1 9 5 . Combat Bots Only 12 | . 4 3 . 2 5 7 . 12 3 3 . 6 3 8 3 3 6 . 4 . 4 7 1 7 5 . Max Kills in Single Turn 4 | 1 1 3 . 1 2 2 . 2 2 2 . 3 2 4 2 1 4 . 2 1 4 1 1 2 2 . Gunslinging 1 | . . . . . 1 . . 1 . . . . 1 . . . . . . . . . . 1 . . Exploded 4 | . . 3 . 1 2 2 . . . 2 . 3 . 4 . 1 4 . 2 . 4 1 . 2 2 . Melee 1 | . . . . . . . . . . . . . . . . . . . . . . . . . 1 . Uniques/NPCs Destroyed 1 | . . . . 1 . . . . . . . . . . . . . . . . . . . . . . YI-UF0 (-9/Mines) Combat | -11 -10 -10 -10 -9 -8 -8 -8 -8 -7 -7 -7 -7 -6 -6 -5 -5 -5 -5 -4 -4 -4 -4 -4 -3 -3 -3 -------- Run | Scr Mat Min Exi Min Mat Gar Mat Gar Fac Gar Fac Gar Fac Gar Fac Upp Upp War Pro Fac Ext Cet Arc Res Qua Sec Damage Taken 33563 | . 116 459 . 132 835 1844 44 1081 334 1154 . 1107 1953 832 1112 239 23 . 360 . 1947 987 332 8614 9627 431 Core 2495 | . 10 81 . 30 113 99 17 133 70 187 . 129 127 21 . . 20 . 21 . 54 68 . 318 753 244 Absorbed by Shields 81 | . . . . . . . . . . . . . . 70 . 11 . . . . . . . . . . Reduced by Siege Mode 847 | . . . . . . . . . . . . . . . . . . . . . . . 12 229 606 . Core Remaining (%) 70 | 100 . . . 51 . . . 34 . . . 44 . 82 . . . . 95 . . . 89 . . . Volleys Fired 1021 | 8 28 24 . 7 45 75 . 44 27 64 . 71 89 60 59 20 6 . 15 1 41 28 14 141 151 3 Largest 4 | 2 2 1 . 1 3 3 . 3 3 3 . 3 3 3 3 3 3 . 2 3 4 4 4 4 4 1 Hottest 429 | 70 70 33 . 33 108 98 . 143 143 113 . 141 115 115 118 103 103 . 60 99 118 123 123 250 429 50 Shots Fired 2316 | 16 55 24 . 7 113 91 . 114 67 108 . 114 208 84 99 26 13 . 17 3 131 58 51 475 439 3 Gun 1675 | 16 55 . . . 75 31 . 96 49 84 . 60 183 47 60 10 10 . 4 2 125 42 51 416 259 . Cannon 297 | . . . . . 28 . . 18 11 5 . 32 . . . . . . . . . . . 49 154 . Launcher 238 | . . 24 . 7 10 60 . . . 7 . 12 . 35 2 11 3 . 12 1 4 16 . 10 24 . Special 106 | . . . . . . . . . 7 12 . 10 25 2 37 5 . . 1 . 2 . . . 2 3 Kinetic 1489 | 8 28 . . . 69 26 . 96 43 64 . 50 133 36 57 10 10 . 4 2 125 42 51 444 191 . Thermal 300 | 8 27 . . . 34 5 . 18 11 5 . 32 . . . . . . . . . . . . 160 . Explosive 61 | . . . . . . 24 . . . 7 . 12 . . 2 . . . 3 1 4 . . . 8 . Electromagnetic 360 | . . 24 . 7 10 36 . . 6 20 . 10 50 46 3 11 3 . 9 . . 16 . 31 78 . Robot Hit Streak 38 | 10 14 4 . 4 8 21 . 28 19 11 . 16 19 14 30 12 13 . 16 19 33 19 23 38 35 10 Robot Miss Streak 6 | 1 2 4 . 3 4 1 . 4 1 3 . 2 6 2 3 1 1 . . . 2 1 2 4 5 . Penetration Max 2 | . . . . . . . . 1 . . . 1 1 . 2 . . . . . 2 . . 1 1 . Secondary Targets 32 | . . . . . 2 . . 6 1 2 . 2 6 1 1 . . . . . 2 . . 9 . . Max Gunslinging Chain 1 | . . . . . 1 . . 1 1 1 . 1 1 1 1 . . . . . 1 . . 1 . . Shots Hit Robots 1610 | 13 43 7 . 3 66 55 1 68 47 64 . 81 143 45 79 16 10 . 7 3 102 38 42 371 303 3 Core Hits 792 | 2 21 25 . 4 38 100 . 30 15 30 . 46 67 35 26 11 12 . 12 2 43 32 12 118 111 . Critical Hits 87 | 1 1 . . . 1 . . 3 2 1 . 1 3 2 5 . . . 1 . 10 . 4 43 9 . Critical Kills 23 | . 1 . . . 1 . . 2 . . . 1 1 . 3 . . . . . 1 . 2 9 2 . Critical Parts Destroyed 54 | 1 . . . . . . . 1 2 1 . . 2 2 2 . . . 1 . 9 . 2 24 7 . Melee Attacks 3 | . . . . . . 2 1 . . . . . . . . . . . . . . . . . . . Impact . | . . . . . . . . . . . . . . . . . . . . . . . . . . . Slashing . | . . . . . . . . . . . . . . . . . . . . . . . . . . . Piercing . | . . . . . . . . . . . . . . . . . . . . . . . . . . . Sneak Attacks . | . . . . . . . . . . . . . . . . . . . . . . . . . . . Combat Hostiles . | . . . . . . . . . . . . . . . . . . . . . . . . . . . Follow-up Attacks . | . . . . . . . . . . . . . . . . . . . . . . . . . . . Damage Inflicted 50024 | 135 561 847 . 127 1763 5062 . 1414 889 1481 . 3226 2212 1559 1092 774 488 . 651 98 2688 2475 781 10053 11647 1 Guns 23689 | 135 561 . . . 707 194 . 1144 583 829 . 614 2074 456 1042 174 150 . 95 47 2037 591 781 7818 3657 . Cannons 7165 | . . . . . 470 . . 270 294 63 . 912 . . . . . . . . . . . 1494 3662 . Explosions 19117 | . . 842 . 127 586 4868 . . . 589 . 1700 130 1103 38 600 338 . 556 51 651 1884 . 741 4313 . Melee . | . . . . . . . . . . . . . . . . . . . . . . . . . . . Ramming 53 | . . 5 . . . . . . 12 . . . 8 . 12 . . . . . . . . . 15 1 Kinetic 22454 | 59 249 . . . 622 133 . 1144 511 695 . 541 1495 381 996 174 150 . 95 47 2037 591 781 8686 3067 . Thermal 9317 | 76 312 73 . . 667 221 . 270 294 63 . 912 . 41 . 108 142 . . . 317 299 . . 5522 . Explosive 7332 | . . . . . . 3583 . . . 589 . 1700 130 . 38 . . . 112 51 334 . . . 795 . Electromagnetic 10868 | . . 769 . 127 474 1125 . . 72 134 . 73 579 1137 46 492 196 . 444 . . 1585 . 1367 2248 . Impact . | . . . . . . . . . . . . . . . . . . . . . . . . . . . Slashing . | . . . . . . . . . . . . . . . . . . . . . . . . . . . Piercing . | . . . . . . . . . . . . . . . . . . . . . . . . . . . Highest Corruption 38 | . . 1 1 1 . 1 1 1 . 2 2 2 3 3 . . . . . . 6 6 6 14 38 38 Average Corruption 4 | . . 1 1 1 . 1 1 1 . 2 2 2 2 2 . . . . . . 5 6 4 7 13 38 Corruption Purged 41 | . . . . . . . . . . . . . . 3 . . . . . . . . 6 29 3 . Effects 407 | . . 2 . 1 . 12 . 5 . 12 1 24 3 14 . . . . . . 22 15 36 83 166 11 Message Errors 90 | . . 1 . . . 7 . 3 . 4 . 9 . 3 . . . . . . 4 3 6 18 29 3 Matter Fused 56 | . . . . . . . . . . . . . 2 3 . . . . . . 9 3 5 12 21 1 Heat Flow Errors 38 | . . . . . . . . . . 2 . 5 . 2 . . . . . . 2 1 7 5 14 . Energy Discharges 43 | . . . . 1 . 3 . 1 . 3 1 2 . 2 . . . . . . . 1 7 11 10 1 Parts Rejected 2 | . . . . . . . . . . . . . . . . . . . . . . . . 1 . 1 Data Loss (minor) 47 | . . 1 . . . 2 . 1 . 2 . 6 1 2 . . . . . . 1 2 2 10 14 3 Data Loss (major) 16 | . . . . . . . . . . . . . . . . . . . . . . 2 4 2 8 . Misfires 4 | . . . . . . . . . . . . . . . . . . . . . 1 1 . 1 1 . Alerts 1 | . . . . . . . . . . . . . . . . . . . . . . . . . 1 . Misdirections 21 | . . . . . . . . . . . . . . . . . . . . . . . . 4 15 2 Targeting Errors 81 | . . . . . . . . . . 1 . 2 . 2 . . . . . . 5 2 4 19 46 . Weapon Failures 8 | . . . . . . . . . . . . . . . . . . . . . . . 1 . 7 . Overload Shots 2 | . . . . . . . . . . . . . . . . . . . . . . . . . 2 . Overflow Damage 1039 | . . . . 14 32 68 . 10 . 18 . 161 21 21 . 6 32 . . . 11 38 . 26 581 . Projectiles 234 | . . . . . 12 . . 10 . . . 80 . . . . . . . . . . . 26 106 . Explosions 805 | . . . . 14 20 68 . . . 18 . 81 21 21 . 6 32 . . . 11 38 . . 475 . Melee . | . . . . . . . . . . . . . . . . . . . . . . . . . . . Knockbacks 20 | . . . . . . . . . . . . . . . . . . . . . . . . 6 14 . Impact . | . . . . . . . . . . . . . . . . . . . . . . . . . . . Kinetic 18 | . . . . . . . . . . . . . . . . . . . . . . . . 6 12 . Secondary 2 | . . . . . . . . . . . . . . . . . . . . . . . . . 2 . Self-Inflicted Damage 2172 | . . 188 . 33 . 62 . . . 91 . 206 92 65 20 5 3 . 27 . 8 . . 32 1340 . Shots 61 | . . 10 . 3 . 5 . . . 4 . 7 1 7 1 1 1 . 2 . 1 . . 3 15 . Rammed 5 | . . 1 . . . . . . 1 . . . 1 . 1 . . . . . . . . . . 1 Targets Rammed 6 | . . 1 . . . . . . 1 . . . 1 . 1 . . . . . . . . . 1 1 Kicked . | . . . . . . . . . . . . . . . . . . . . . . . . . . . Crushed 1 | . . . . . . . . . . . . . . . . . . . . . . . . . 1 . Highest Temperature 535 | 36 102 9 . 3 278 54 . 385 350 240 . 399 419 535 146 27 54 . 3 9 218 164 261 363 251 24 Average Temperature 97 | 19 26 6 . 3 95 13 . 111 117 85 . 142 122 99 37 10 24 . 3 6 44 86 124 142 46 13 Received Heat Transfer 4367 | . 63 57 . 18 369 441 9 333 105 276 . 261 581 12 249 18 . . 18 . 78 87 9 501 810 72 Effects 29 | . . . . . 1 . . . . . . 7 5 5 . . . . . . . . 4 7 . . Shutdowns 6 | . . . . . . . . . . . . 1 1 2 . . . . . . . . . 2 . . Energy Bleed 7 | . . . . . 1 . . . . . . 2 2 . . . . . . . . . 1 1 . . Interference 6 | . . . . . . . . . . . . . . . . . . . . . . . 3 3 . . Matter Decay 1 | . . . . . . . . . . . . . . 1 . . . . . . . . . . . . Short Circuit 5 | . . . . . . . . . . . . 2 . 2 . . . . . . . . . 1 . . Damage (minor) 4 | . . . . . . . . . . . . 2 2 . . . . . . . . . . . . . Siege Activations 21 | . . . . . . . . . . . . . . . . 1 . . . . . . 1 8 11 . Total Turns 412 | . . . . . . . . . . . . . . . . 17 . . . . . . 19 155 221 . Longest Duration 63 | . . . . . . . . . . . . . . . . 17 . . . . . . 19 49 63 . Robots Corrupted 27 | . . . . . 2 1 . . . . . . 1 2 . 3 . . 3 . . 6 . 3 6 . Combat Hostiles 26 | . . . . . 2 1 . . . . . . . 2 . 3 . . 3 . . 6 . 3 6 . Parts Fried 64 | . . . . 1 2 5 . . . . . . 4 9 . 7 1 . 2 . . 12 . 9 12 . Impact Corruptions . | . . . . . . . . . . . . . . . . . . . . . . . . . . . Robots Melted . | . . . . . . . . . . . . . . . . . . . . . . . . . . . Combat Hostiles . | . . . . . . . . . . . . . . . . . . . . . . . . . . . Parts Melted 6 | . 2 . . . . . . 1 1 . . . . . . . . . . . . . . . 2 . Heat Transferred 9010 | 222 925 150 . . 1075 261 . 333 333 74 . 1055 . . . 50 200 . . . 100 200 . . 4032 . Parts Sabotaged 3 | . . . . . . . . . . . . . . . . . . . . . . . . . 3 . Parts Stolen . | . . . . . . . . . . . . . . . . . . . . . . . . . . . Parts Stripped . | . . . . . . . . . . . . . . . . . . . . . . . . . . . Power Chain Reactions 25 | . . 5 . . 3 6 . . . . . . . 3 . 1 2 . . . . 1 . . 4 . Missiles Intercepted . | . . . . . . . . . . . . . . . . . . . . . . . . . . . Alert | -11 -10 -10 -10 -9 -8 -8 -8 -8 -7 -7 -7 -7 -6 -6 -5 -5 -5 -5 -4 -4 -4 -4 -4 -3 -3 -3 ------- Run | Scr Mat Min Exi Min Mat Gar Mat Gar Fac Gar Fac Gar Fac Gar Fac Upp Upp War Pro Fac Ext Cet Arc Res Qua Sec Peak Influence 1240 | 5 213 489 . 40 414 1240 619 932 684 708 371 1117 673 1203 1030 . . . . 253 431 566 286 465 1139 584 Initial 631 | . 3 4 . . 1 239 604 402 489 123 371 259 585 297 631 . . . . 41 123 107 226 . 251 564 Average 545 | 1 85 229 . 24 114 895 616 775 490 456 371 858 444 878 733 . . . . 171 276 359 92 279 642 571 Maximum Alert Level 4 | . 1 2 . . 2 4 2 3 2 3 1 4 2 4 3 . . . . 1 2 2 1 2 4 2 Low Security (%) 18 | 100 94 39 . 100 76 . . . 18 15 . . 6 . 8 . . . . 42 25 11 75 18 . . Level 1 24 | . 5 58 . . 19 9 . . . 14 100 13 41 8 . . . . . 57 74 63 24 63 35 . Level 2 20 | . . 1 . . 3 8 100 14 80 53 . 17 51 18 20 . . . . . . 25 . 18 20 100 Level 3 24 | . . . . . . 54 . 85 . 17 . 40 . 34 70 . . . . . . . . . 35 . Level 4 10 | . . . . . . 28 . . . . . 28 . 38 . . . . . . . . . . 8 . Level 5 . | . . . . . . . . . . . . . . . . . . . . . . . . . . . High Security . | . . . . . . . . . . . . . . . . . . . . . . . . . . . Max Security . | . . . . . . . . . . . . . . . . . . . . . . . . . . . Squads Dispatched 55 | . 2 . . . 5 . . . 4 . . . 7 . 6 . . . . 1 4 . . 9 15 2 Investigation 5 | . 1 . . . 1 . . . . . . . 1 . . . . . . . . . . 1 1 . Extermination 19 | . . . . . . . . . 2 . . . 3 . 1 . . . . 1 . . . 5 7 . Reinforcement 22 | . 1 . . . 4 . . . 1 . . . 2 . 2 . . . . . 4 . . 2 4 2 Assault 7 | . . . . . . . . . . . . . 1 . 3 . . . . . . . . . 3 . Garrison 2 | . . . . . . . . . 1 . . . . . . . . . . . . . . 1 . . Intercept . | . . . . . . . . . . . . . . . . . . . . . . . . . . . Construction Impeded 5 | . . . . . . . . . . . . . . . 1 . . . . . 1 . . 1 2 . Haulers Reinforced 2 | . . . . . . . . . . . . . 1 . 1 . . . . . . . . . . . Stealth | -11 -10 -10 -10 -9 -8 -8 -8 -8 -7 -7 -7 -7 -6 -6 -5 -5 -5 -5 -4 -4 -4 -4 -4 -3 -3 -3 --------- Run | Scr Mat Min Exi Min Mat Gar Mat Gar Fac Gar Fac Gar Fac Gar Fac Upp Upp War Pro Fac Ext Cet Arc Res Qua Sec Distress Signals 11 | . 2 . . . 1 . . . . . . . 2 . 3 . . . . . . 1 . 1 1 . Communications Jammed . | . . . . . . . . . . . . . . . . . . . . . . . . . . . Distress Signals . | . . . . . . . . . . . . . . . . . . . . . . . . . . . Times Spotted 512 | . 12 19 . 3 31 44 1 15 17 29 . 32 60 29 37 11 3 . 9 . 20 17 3 51 65 4 Peak Tracking Total 8 | . 4 3 . 2 4 8 1 5 4 5 . 8 5 6 7 4 2 . 4 1 6 5 1 7 6 4 Tactical Retreats 40 | . . . . . 4 9 . . . 2 . 4 4 4 3 1 . . . . . 1 . 3 5 . Traps | -11 -10 -10 -10 -9 -8 -8 -8 -8 -7 -7 -7 -7 -6 -6 -5 -5 -5 -5 -4 -4 -4 -4 -4 -3 -3 -3 ------- Run | Scr Mat Min Exi Min Mat Gar Mat Gar Fac Gar Fac Gar Fac Gar Fac Upp Upp War Pro Fac Ext Cet Arc Res Qua Sec Traps Triggered 60 | . 1 . . . 3 12 . 7 1 8 . 9 2 9 1 . . . . . . . . 4 3 . Indirectly 7 | . . . . . 1 5 . . . . . . . 1 . . . . . . . . . . . . Trap Hack Attempts . | . . . . . . . . . . . . . . . . . . . . . . . . . . . Triggered . | . . . . . . . . . . . . . . . . . . . . . . . . . . . Disarmed . | . . . . . . . . . . . . . . . . . . . . . . . . . . . Reprogrammed . | . . . . . . . . . . . . . . . . . . . . . . . . . . . Reused . | . . . . . . . . . . . . . . . . . . . . . . . . . . . Traps Extracted . | . . . . . . . . . . . . . . . . . . . . . . . . . . . Installed . | . . . . . . . . . . . . . . . . . . . . . . . . . . . Triggered 1 | . . . . . . . . . . . . . . . . . . . 1 . . . . . . . Exploded 2 | . . . . . 2 . . . . . . . . . . . . . . . . . . . . . Machines | -11 -10 -10 -10 -9 -8 -8 -8 -8 -7 -7 -7 -7 -6 -6 -5 -5 -5 -5 -4 -4 -4 -4 -4 -3 -3 -3 ---------- Run | Scr Mat Min Exi Min Mat Gar Mat Gar Fac Gar Fac Gar Fac Gar Fac Upp Upp War Pro Fac Ext Cet Arc Res Qua Sec Machines Disabled 77 | . . 4 . . 3 3 . 3 . 3 . 8 6 5 10 . . . . 3 2 3 1 4 19 . Max in Single Turn 2 | . . 2 . . 1 1 . 1 . 1 . 1 1 1 1 . . . . . 2 2 1 1 2 . Garrison Access 4 | . . . . . . . . . . . . . . . 1 . . . . 1 . . . 1 . 1 Garrison Relay 17 | . . . . . . 3 . 3 . 3 . 4 . 4 . . . . . . . . . . . . Phase Generator 1 | . . . . . . . . . . . . 1 . . . . . . . . . . . . . . Energy Cycler 2 | . . . . . . . . . . . . . . . . . . . . . 2 . . . . . Machines Sabotaged . | . . . . . . . . . . . . . . . . . . . . . . . . . . . Garrisons Compromised . | . . . . . . . . . . . . . . . . . . . . . . . . . . . Overloaded Fab Kills . | . . . . . . . . . . . . . . . . . . . . . . . . . . . Fab Network Shutdowns . | . . . . . . . . . . . . . . . . . . . . . . . . . . . Hacking | -11 -10 -10 -10 -9 -8 -8 -8 -8 -7 -7 -7 -7 -6 -6 -5 -5 -5 -5 -4 -4 -4 -4 -4 -3 -3 -3 --------- Run | Scr Mat Min Exi Min Mat Gar Mat Gar Fac Gar Fac Gar Fac Gar Fac Upp Upp War Pro Fac Ext Cet Arc Res Qua Sec Machines Accessed 45 | . 2 . 1 1 5 . 1 . 3 . 1 . 11 . 3 . . . . 3 . 1 . 5 5 3 Terminals 27 | . 2 . . 1 2 . . . 2 . . . 8 . 1 . . . . 1 . 1 . 4 4 1 Fabricators 2 | . . . . . . . . . . . . . 1 . 1 . . . . . . . . . . . Repair Stations 3 | . . . . . 1 . . . . . . . . . . . . . . . . . . . 1 1 Recycling Units . | . . . . . . . . . . . . . . . . . . . . . . . . . . . Scanalyzers 3 | . . . . . 1 . . . . . . . 1 . . . . . . 1 . . . . . . Garrison Access 9 | . . . . . 1 . 1 . 1 . 1 . 1 . 1 . . . . 1 . . . 1 . 1 Total Hacks 99 | . 5 . 1 6 14 . 1 . 7 . 1 . 26 . 3 . . . . 7 . 2 . 10 11 5 Successful 47 | . 3 . 1 2 11 . 1 . 3 . 1 . 8 . 1 . . . . 5 . 1 . 4 4 2 Failed 52 | . 2 . . 4 3 . . . 4 . . . 18 . 2 . . . . 2 . 1 . 6 7 3 Catastrophic 8 | . 1 . . . . . . . . . . . 3 . . . . . . . . . . 1 1 2 Database Lockouts . | . . . . . . . . . . . . . . . . . . . . . . . . . . . Manual 42 | . 5 . . 6 5 . . . 2 . . . 14 . . . . . . 3 . . . 3 4 . Terminals 70 | . 5 . . 6 8 . . . 6 . . . 21 . 1 . . . . 2 . 2 . 9 9 1 Fabricators 4 | . . . . . . . . . . . . . 3 . 1 . . . . . . . . . . . Repair Stations 7 | . . . . . 2 . . . . . . . . . . . . . . . . . . . 2 3 Recycling Units . | . . . . . . . . . . . . . . . . . . . . . . . . . . . Scanalyzers 6 | . . . . . 2 . . . . . . . 1 . . . . . . 3 . . . . . . Garrison Access 11 | . . . . . 2 . 1 . 1 . 1 . 1 . 1 . . . . 2 . . . 1 . 1 Terminal Hacks 18 | . 1 . 1 2 4 . . . . . . . 5 . . . . . . . . 1 . 1 2 1 Record 3 | . . . 1 . . . . . . . . . . . . . . . . . . . . . 1 1 Robot Schematic 1 | . . . . . . . . . . . . . 1 . . . . . . . . . . . . . Robot Analysis 3 | . . . . 2 1 . . . . . . . . . . . . . . . . . . . . . Prototype ID Bank 3 | . . . . . 1 . . . . . . . 2 . . . . . . . . . . . . . Open Door 2 | . . . . . . . . . . . . . . . . . . . . . . 1 . . 1 . Branch Access Points 2 | . . . . . 1 . . . . . . . . . . . . . . . . . . 1 . . Terminal Index 2 | . 1 . . . . . . . . . . . 1 . . . . . . . . . . . . . Locate Traps 1 | . . . . . . . . . . . . . 1 . . . . . . . . . . . . . Zone Layout 1 | . . . . . 1 . . . . . . . . . . . . . . . . . . . . . Fabricator Hacks . | . . . . . . . . . . . . . . . . . . . . . . . . . . . Repair Station Hacks 3 | . . . . . 2 . . . . . . . . . . . . . . . . . . . 1 . Scan Component 2 | . . . . . 1 . . . . . . . . . . . . . . . . . . . 1 . Repair 1 | . . . . . 1 . . . . . . . . . . . . . . . . . . . . . Recycling Unit Hacks . | . . . . . . . . . . . . . . . . . . . . . . . . . . . Scanalyzer 4 | . . . . . 2 . . . . . . . . . . . . . . 2 . . . . . . Insert Component 2 | . . . . . 1 . . . . . . . . . . . . . . 1 . . . . . . Analyze 2 | . . . . . 1 . . . . . . . . . . . . . . 1 . . . . . . Garrison Access Hacks 9 | . . . . . 1 . 1 . 1 . 1 . 1 . 1 . . . . 1 . . . 1 . 1 Unlock Access 5 | . . . . . 1 . 1 . 1 . 1 . 1 . . . . . . . . . . . . . Seal Access 4 | . . . . . . . . . . . . . . . 1 . . . . 1 . . . 1 . 1 Unauthorized Hacks 13 | . 2 . . . 2 . . . 2 . . . 2 . . . . . . 2 . . . 2 1 . Terminals 11 | . 2 . . . 2 . . . 2 . . . 2 . . . . . . . . . . 2 1 . Botnet 7 | . 1 . . . 1 . . . 1 . . . 2 . . . . . . . . . . 1 1 . Operators 4 | . 1 . . . 1 . . . 1 . . . . . . . . . . . . . . 1 . . Fabricators . | . . . . . . . . . . . . . . . . . . . . . . . . . . . Repair Stations . | . . . . . . . . . . . . . . . . . . . . . . . . . . . Recycling Units . | . . . . . . . . . . . . . . . . . . . . . . . . . . . Scanalyzers 1 | . . . . . . . . . . . . . . . . . . . . 1 . . . . . . Researchers 1 | . . . . . . . . . . . . . . . . . . . . 1 . . . . . . Garrison Access 1 | . . . . . . . . . . . . . . . . . . . . 1 . . . . . . Restock 1 | . . . . . . . . . . . . . . . . . . . . 1 . . . . . . Data Cores Recovered 1 | . . . . . . . . . . . . . 1 . . . . . . . . . . . . . Used . | . . . . . . . . . . . . . . . . . . . . . . . . . . . Hacking Detections 38 | . 2 . . 1 5 . . . 3 . 1 . 11 . 2 . . . . 2 . 1 . 4 4 2 Full Trace Events . | . . . . . . . . . . . . . . . . . . . . . . . . . . . Feedback Events . | . . . . . . . . . . . . . . . . . . . . . . . . . . . Feedback Blocked . | . . . . . . . . . . . . . . . . . . . . . . . . . . . Robot Schematics Acquired 1 | . . . . . . . . . . . . . 1 . . . . . . . . . . . . . Robots Built . | . . . . . . . . . . . . . . . . . . . . . . . . . . . Matter . | . . . . . . . . . . . . . . . . . . . . . . . . . . . Time . | . . . . . . . . . . . . . . . . . . . . . . . . . . . Total Robot Build Rating . | . . . . . . . . . . . . . . . . . . . . . . . . . . . Part Schematics Acquired 2 | . . . . . 1 . . . . . . . . . . . . . . 1 . . . . . . Parts Built . | . . . . . . . . . . . . . . . . . . . . . . . . . . . Matter . | . . . . . . . . . . . . . . . . . . . . . . . . . . . Time . | . . . . . . . . . . . . . . . . . . . . . . . . . . . Total Part Build Rating . | . . . . . . . . . . . . . . . . . . . . . . . . . . . Parts Repaired 1 | . . . . . 1 . . . . . . . . . . . . . . . . . . . . . Time 26 | . . . . . 26 . . . . . . . . . . . . . . . . . . . . . Parts Recycled . | . . . . . . . . . . . . . . . . . . . . . . . . . . . Recycled Matter . | . . . . . . . . . . . . . . . . . . . . . . . . . . . Retrieved Matter . | . . . . . . . . . . . . . . . . . . . . . . . . . . . Retrieved Components . | . . . . . . . . . . . . . . . . . . . . . . . . . . . Parts Scanalyzed 2 | . . . . . 1 . . . . . . . . . . . . . . 1 . . . . . . Part Schematics Acquired 2 | . . . . . 1 . . . . . . . . . . . . . . 1 . . . . . . Parts Damaged . | . . . . . . . . . . . . . . . . . . . . . . . . . . . Bothacking | -11 -10 -10 -10 -9 -8 -8 -8 -8 -7 -7 -7 -7 -6 -6 -5 -5 -5 -5 -4 -4 -4 -4 -4 -3 -3 -3 ------------ Run | Scr Mat Min Exi Min Mat Gar Mat Gar Fac Gar Fac Gar Fac Gar Fac Upp Upp War Pro Fac Ext Cet Arc Res Qua Sec Used RIF Installer 5 | . . . . . . 1 . 1 . 1 . 1 . 1 . . . . . . . . . . . . Coupler Efficiency 1 | . . . . . . . . . . 1 . . . . . . . . . . . . . . . . Robot Detection 1 | . . . . . . . . 1 . . . . . . . . . . . . . . . . . . Structural Interface 1 | . . . . . . . . . . . . 1 . . . . . . . . . . . . . . Autooverride 1 | . . . . . . . . . . . . . . 1 . . . . . . . . . . . . Robots Hacked 60 | . . . . . . 1 1 . 2 10 . 9 17 2 13 1 . . 1 . . . . . 1 2 Non-combat 9 | . . . . . . . . . 1 . . . 4 . 3 1 . . . . . . . . . . Combat 51 | . . . . . . 1 1 . 1 10 . 9 13 2 10 . . . 1 . . . . . 1 2 Robot Hacks Applied 79 | . . . . . . 1 1 . 6 10 . 9 21 2 22 2 . . 1 . . . . . 1 3 parse_system 7 | . . . . . . . . . 1 . . . 2 . . 1 . . . . . . . . 1 2 start_evac 1 | . . . . . . . . . . . . . . . 1 . . . . . . . . . . . find_chute 2 | . . . . . . . . . . . . . 2 . . . . . . . . . . . . . drop_inventory 1 | . . . . . . . . . . . . . . . 1 . . . . . . . . . . . purge_threat 12 | . . . . . . . . . 3 . . . 3 . 6 . . . . . . . . . . . locate_traps 1 | . . . . . . . . . . . . . . . 1 . . . . . . . . . . . block_reporting 1 | . . . . . . . . . . . . . . . 1 . . . . . . . . . . . find_scanalyzer 1 | . . . . . . . . . . . . . . . . . . . . . . . . . . 1 find_garrison 2 | . . . . . . . . . . . . . 1 . 1 . . . . . . . . . . . overload_power 1 | . . . . . . . . . . . . . . . 1 . . . . . . . . . . . overwrite_iff 7 | . . . . . . . . . . 3 . . 1 . 3 . . . . . . . . . . . streamctrl_high 2 | . . . . . . . 1 . . . . . . . 1 . . . . . . . . . . . formatsys_low 2 | . . . . . . . . . 1 . . . 1 . . . . . . . . . . . . . formatsys_high 39 | . . . . . . 1 . . 1 7 . 9 11 2 6 1 . . 1 . . . . . . . Relay Couplers Released 63 | . . . . . . 11 . 12 . 11 . 14 . 15 . . . . . . . . . . . . Machine Destruction 63 | . . . . . . 11 . 12 . 11 . 14 . 15 . . . . . . . . . . . . Attached 32 | . . . . . . 2 . . 4 7 . 4 7 1 6 . . . 1 . . . . . . . Robots Rewired 9 | . . . . . . 4 . . . . . . . . 1 . . . . . 4 . . . . . Allies Hacked 1 | . . . . . . . . . . . . . . . . 1 . . . . . . . . . . Hacks Repelled . | . . . . . . . . . . . . . . . . . . . . . . . . . . . Allies | -11 -10 -10 -10 -9 -8 -8 -8 -8 -7 -7 -7 -7 -6 -6 -5 -5 -5 -5 -4 -4 -4 -4 -4 -3 -3 -3 -------- Run | Scr Mat Min Exi Min Mat Gar Mat Gar Fac Gar Fac Gar Fac Gar Fac Upp Upp War Pro Fac Ext Cet Arc Res Qua Sec Total Allies 67 | . . 3 . . . 5 1 . 2 10 . 9 13 2 12 . . . 1 . 9 . . . . . Largest Group 13 | . . 3 . . . 5 6 2 2 5 5 13 13 5 8 4 2 1 1 1 5 4 . . . . Highest-Rated Group 334 | . . 40 . . . 83 98 36 42 149 149 334 334 206 308 177 79 49 115 115 274 177 . . . . Highest-Rated Ally 115 | . . 16 . . . 21 21 21 32 32 32 38 81 81 81 49 49 49 115 115 115 47 . . . . Total Orders 64 | . . . . . . 4 1 2 5 8 2 8 17 4 3 2 . . . 2 1 4 . . . 1 STAY 36 | . . . . . . 2 1 1 3 5 1 5 8 3 2 1 . . . 1 1 2 . . . . FOLLOW 27 | . . . . . . 2 . 1 2 3 1 3 9 1 1 1 . . . 1 . 2 . . . . EXPLORE 1 | . . . . . . . . . . . . . . . . . . . . . . . . . . 1 Ally Attacks 397 | . . 53 . . . 3 2 . 12 30 . 4 134 14 89 9 3 . 3 7 20 14 . . . . Total Damage 10706 | . . 627 . . . 29 29 . 403 518 . 18 3491 564 3200 182 92 . 93 601 585 274 . . . . Kills 88 | . . 10 . . . 2 . . 2 4 . 1 35 4 17 1 1 . 1 3 4 3 . . . . Allies Corrupted 3 | . . . . . . . . . 1 . . . . . . 1 . . . . 1 . . . . . Allies Melted 2 | . . . . . . . . . . . . . 1 . . . . . . . 1 . . . . . Intel | -11 -10 -10 -10 -9 -8 -8 -8 -8 -7 -7 -7 -7 -6 -6 -5 -5 -5 -5 -4 -4 -4 -4 -4 -3 -3 -3 ------- Run | Scr Mat Min Exi Min Mat Gar Mat Gar Fac Gar Fac Gar Fac Gar Fac Upp Upp War Pro Fac Ext Cet Arc Res Qua Sec Robot Analysis Total 3 | . . . . 2 1 . . . . . . . . . . . . . . . . . . . . . Derelict Logs Recovered 5 | . . 2 . 1 . . . . . . . . . . . . 1 . 1 . . . . . . . Drone Launches 6 | . . . . . . . . . . . . . . . . . . . . . . . . . 5 1 Drone Recoveries 3 | . . . . . . . . . . . . . . . . . . . . . . . . . 3 . Exploration | -11 -10 -10 -10 -9 -8 -8 -8 -8 -7 -7 -7 -7 -6 -6 -5 -5 -5 -5 -4 -4 -4 -4 -4 -3 -3 -3 ------------- Run | Scr Mat Min Exi Min Mat Gar Mat Gar Fac Gar Fac Gar Fac Gar Fac Upp Upp War Pro Fac Ext Cet Arc Res Qua Sec Turns Passed 32616 | 137 419 1134 390 704 1361 2289 89 1548 660 2329 112 2908 2089 4065 1362 511 558 72 698 335 976 369 1636 2705 2970 190 Spaces Moved 14355 | 69 192 447 211 313 472 1082 34 600 286 1104 48 1648 1345 1815 580 249 299 41 348 162 417 129 155 1136 1086 87 Core 75 | 8 . . . 2 . . . . . . . . . 22 . . . . . . . . 43 . . . Treads 11481 | 61 192 447 211 . 406 1082 34 600 286 1104 48 858 . 1523 580 249 299 41 348 162 417 129 112 1136 1069 87 Legs 394 | . . . . 311 66 . . . . . . . . . . . . . . . . . . . 17 . Wheels 2405 | . . . . . . . . . . . . 790 1345 270 . . . . . . . . . . . . Hover . | . . . . . . . . . . . . . . . . . . . . . . . . . . . Flight . | . . . . . . . . . . . . . . . . . . . . . . . . . . . Fastest Speed 50 | 50 160 180 180 210 180 166 186 180 180 180 180 116 113 93 180 180 180 180 180 183 185 180 180 160 153 170 Average Speed 185 | 148 162 180 180 217 190 185 186 182 187 180 180 148 126 199 202 180 180 180 182 194 185 185 990 173 189 183 Slowest Speed 3100 | 160 180 180 180 1250 250 210 186 200 200 200 180 260 145 1100 240 180 200 180 200 205 185 206 3100 185 240 190 Overloaded Moves . | . . . . . . . . . . . . . . . . . . . . . . . . . . . Propulsion Burnouts . | . . . . . . . . . . . . . . . . . . . . . . . . . . . Robots Hopped . | . . . . . . . . . . . . . . . . . . . . . . . . . . . Cave-ins Triggered 4 | . . . . . . . . . . . . . . . . . . . . . 1 . . . 3 . Exploration Rate (%) 46 | 5 41 80 55 66 49 74 7 69 7 68 2 94 34 98 18 39 53 9 64 4 63 66 81 30 70 9 Regions Visited 26 Branch Regions 12 Pre-discovered Areas 4 | . . 1 1 1 . . . . . . . . . . . . 1 . . . . . . . . . Known Exits Taken 15 | . . . . . 1 . 1 . 1 . 1 . 1 . 1 1 1 1 1 1 1 1 1 1 . . Unknown Exits Taken 6 | 1 1 1 1 1 . . . . . . . . . . . . . . . . . . . . 1 . Scrap Searched 8 | . . . . 2 . . . . . . . . . . . . 3 . 3 . . . . . . . Spaces Dug 129 | . . . . . . . . . . 10 . 3 . . 14 8 . . 38 . 43 . . . 13 . Terrain Destroyed 1787 | . . 19 . . 4 132 . 6 2 39 . 180 10 7 42 9 11 . 51 8 168 14 5 20 1060 . Melee . | . . . . . . . . . . . . . . . . . . . . . . . . . . . Projectile 92 | . . . . . 1 . . 6 2 4 . 1 . 5 1 2 . . . . 2 6 5 20 37 . AOE 1695 | . . 19 . . 3 132 . . . 35 . 179 10 2 41 7 11 . 51 8 166 8 . . 1023 . Terrain Rammed . | . . . . . . . . . . . . . . . . . . . . . . . . . . . Walls Destroyed . | . . . . . . . . . . . . . . . . . . . . . . . . . . . Machines Disabled . | . . . . . . . . . . . . . . . . . . . . . . . . . . . Actions | -11 -10 -10 -10 -9 -8 -8 -8 -8 -7 -7 -7 -7 -6 -6 -5 -5 -5 -5 -4 -4 -4 -4 -4 -3 -3 -3 --------- Run | Scr Mat Min Exi Min Mat Gar Mat Gar Fac Gar Fac Gar Fac Gar Fac Upp Upp War Pro Fac Ext Cet Arc Res Qua Sec Total 18618 | 85 245 751 224 330 851 1277 59 964 358 1345 74 2015 1601 2203 699 288 306 40 394 181 531 216 227 1549 1689 116 Wait 2110 | 2 7 278 . 4 292 35 24 284 18 97 27 173 62 225 12 9 . . 17 12 24 28 38 95 326 21 Move 14321 | 68 191 446 210 312 471 1080 33 598 286 1102 47 1646 1344 1813 579 248 298 40 347 161 415 128 154 1135 1082 87 Hop . | . . . . . . . . . . . . . . . . . . . . . . . . . . . Pick Up 368 | 1 12 1 7 2 15 14 1 11 14 31 . 46 32 38 11 5 . . 3 1 23 10 6 57 27 . Fast Attach 120 | 6 1 . . 2 8 5 . 2 . 2 . 8 9 15 5 . 1 . 2 1 1 4 1 24 22 1 Attach 169 | . . . 1 2 10 11 . 5 2 9 . 9 12 3 10 2 . . 1 3 8 2 4 35 39 1 Detach 32 | . . . . . . 2 . . . . . 3 2 3 4 . . . 1 . . . 2 10 5 . Swap 133 | . 2 1 2 . 3 2 . 2 9 18 . 9 25 4 13 1 . . 4 . 4 3 2 17 12 . Drop 203 | . 4 . 4 1 7 6 . 4 2 8 . 19 25 26 5 3 1 . 4 2 6 13 6 35 21 1 Fire 1021 | 8 28 24 . 7 45 75 . 44 27 64 . 71 89 60 59 20 6 . 15 1 41 28 14 141 151 3 Melee 3 | . . . . . . 2 1 . . . . . . . . . . . . . . . . . . . Ram 2 | . . . . . . . . . . . . . 1 . . . . . . . . . . . . 1 Kick . | . . . . . . . . . . . . . . . . . . . . . . . . . . . Crush 3 | . . 1 . . . . . . . . . . . . 1 . . . . . . . . . 1 . Escape Stasis 88 | . . . . . . 8 . 14 . 14 . 31 . 16 . . . . . . 1 . . . 3 1 Rewire 45 | . . . . . . 37 . . . . . . . . . . . . . . 8 . . . . . Trap . | . . . . . . . . . . . . . . . . . . . . . . . . . . . Miscellaneous . | . . . . . . . . . . . . . . . . . . . . . . . . . . . Route ------- -11/Scrapyard -10/Materials -10/Mines (discovered 2 exits: [*Mat] / *Exi) -10/Exiles -9/Mines -8/Materials (discovered 3 exits: *Fac x2 / Gar) -8/Garrison (discovered 2 exits: *Mat x2) -8/Materials -8/Garrison (discovered 2 exits: *Fac x2) -7/Factory -7/Garrison (discovered 3 exits: *Fac x3) -7/Factory -7/Garrison (discovered 3 exits: *Fac x3) -6/Factory (discovered 4 exits: *Fac / [*Low x2] / Gar) -6/Garrison (discovered 3 exits: *Fac x3) -5/Factory -5/Upper Caves -5/Upper Caves (discovered 2 exits: *Fac / *War) -5/Warlord -4/Proximity Caves -4/Factory -4/Extension (discovered 2 exits: *Res / *Cet) -4/Cetus -4/Archives (discovered 3 exits: *Res / [*Hub x2]) -3/Research (discovered 3 exits: Arm / *Qua x2) -3/Quarantine (discovered 2 exits: *Res / *Sec) -3/Section 7 History --------- Turn | Location | Event 3 | -11/Scrapyard | Discovered new exit (range 16) 138 | -11/Scrapyard | Entered Materials 313 | -10/Materials | Build established: Mutant 490 | -10/Materials | Discovered new exit (range 16) 557 | -10/Materials | Entered Mines 755 | -10/Mines | Assisted by bots powering up and referring to "LRC-V3" 880 | -10/Mines | Received a Rocket Launcher from a helpful Derelict 944 | -10/Mines | Discovered new exit (range 8) 1024 | -10/Mines | Learned location of Storage (-9) 1231 | -10/Mines | Learned Materials security intel 1240 | -10/Mines | Excavation squad dispatched 1240 | -10/Mines | A large section of the Mines collapsed 1490 | -10/Mines | Excavation squad dispatched 1683 | -10/Mines | Deemed a non-threat by the Exiles lab entrance 1683 | -10/Mines | Discovered new exit (range 5) 1691 | -10/Mines | Entered Exiles 1752 | -10/Exiles | Met 8R-AWN 1781 | -10/Exiles | Met EX-HEX 1881 | -10/Exiles | Met EX-DEC 1909 | -10/Exiles | Learned location of Zion (-7) 2066 | -10/Exiles | Discovered new exit (range 10) 2081 | -10/Exiles | Entered Mines 2110 | -9/Mines | Met a Derelict bent on vengeance 2115 | -9/Mines | Lost 3 parts (2n1w) 2316 | -9/Mines | Build established: Hauler-Mutant 2687 | -9/Mines | Destroyed YI-UF0 2771 | -9/Mines | Discovered new exit (range 5) 2785 | -9/Mines | Entered Materials 2785 | -8/Materials | Evolved 4 slots: Propulsion x1, Utility x2, Weapon x1 3126 | -8/Materials | Discovered new exit (range 16) 3148 | -8/Materials | Build established: Hauler-Bomber 3578 | -8/Materials | Repaired Hcp. Storage Unit 3880 | -8/Materials | Lost 3 parts (1u2w) 3909 | -8/Materials | Discovered new exit (range 10) 4144 | -8/Materials | Identified exit to Garrison 4146 | -8/Materials | Entered Garrison 4205 | -8/Garrison | Triggered checkpoint 4366 | -8/Garrison | Triggered checkpoint 4397 | -8/Garrison | Destroyed 7 combat bots 4501 | -8/Garrison | Build established: Hauler-Mutant 4547 | -8/Garrison | Triggered checkpoint 4566 | -8/Garrison | Discovered new exit (range 15) 4602 | -8/Garrison | Installed Relay Interface Framework 4683 | -8/Garrison | Triggered checkpoint 4884 | -8/Garrison | Garrison Relay disabled 5077 | -8/Garrison | Triggered checkpoint 5119 | -8/Garrison | Garrison Relay disabled 5257 | -8/Garrison | Spotted B-75 Beast 5360 | -8/Garrison | Destroyed B-75 Beast 5377 | -8/Garrison | Lost 7 parts (1p2n1u3w) 5569 | -8/Garrison | Discovered new exit (range 12) 5794 | -8/Garrison | Garrison Relay disabled 5862 | -8/Garrison | Triggered checkpoint 5926 | -8/Garrison | Triggered checkpoint 6042 | -8/Garrison | Build established: Commander-Mutant 6435 | -8/Garrison | Entered Materials 6435 | -8/Materials | Accompanied by 5 allies 6522 | -8/Materials | Identified exit to Garrison 6524 | -8/Materials | Entered Garrison 6524 | -8/Garrison | Accompanied by 2 allies 6568 | -8/Garrison | Triggered checkpoint 6617 | -8/Garrison | Garrison Relay disabled 6689 | -8/Garrison | Triggered checkpoint 6705 | -8/Garrison | Core integrity fell below 50% 6754 | -8/Garrison | Triggered checkpoint 6786 | -8/Garrison | Destroyed 12 combat bots 6786 | -8/Garrison | Lost 4 parts (1p2n1w) 6861 | -8/Garrison | Discovered new exit (range 12) 6990 | -8/Garrison | Build established: Bothacker-Bomber 7032 | -8/Garrison | Discovered new exit (range 9) 7055 | -8/Garrison | Expanded RIF knowledge: Robot Detection 7134 | -8/Garrison | Triggered checkpoint 7428 | -8/Garrison | Garrison Relay disabled 7650 | -8/Garrison | Triggered checkpoint 7727 | -8/Garrison | Garrison Relay disabled 8021 | -8/Garrison | Build established: Bothacker-Mutant 8072 | -8/Garrison | Entered Factory 8072 | -7/Factory | Accompanied by 2 allies 8072 | -7/Factory | Evolved 2 slots: Utility x2 8400 | -7/Factory | Build established: Bothacker-Gunner 8697 | -7/Factory | Garrison activated, responded to threat 8730 | -7/Factory | Identified exit to Garrison 8732 | -7/Factory | Entered Garrison 8742 | -7/Garrison | Expanded RIF knowledge: Coupler Efficiency 8912 | -7/Garrison | Triggered checkpoint 9085 | -7/Garrison | Triggered checkpoint 9119 | -7/Garrison | Build established: Bothacker-Mutant 9200 | -7/Garrison | Triggered checkpoint 9213 | -7/Garrison | Triggered checkpoint 9362 | -7/Garrison | Triggered checkpoint 9430 | -7/Garrison | Garrison Relay disabled 9505 | -7/Garrison | Discovered new exit (range 14) 9706 | -7/Garrison | Found Hvy. Insulated Plating 9891 | -7/Garrison | Triggered checkpoint 9918 | -7/Garrison | Garrison Relay disabled 10099 | -7/Garrison | Discovered new exit (range 13) 10254 | -7/Garrison | Triggered checkpoint 10464 | -7/Garrison | Discovered new exit (range 8) 10582 | -7/Garrison | Triggered checkpoint 10652 | -7/Garrison | Garrison Relay disabled 11061 | -7/Garrison | Entered Factory 11061 | -7/Factory | Accompanied by 5 allies 11126 | -7/Factory | Identified exit to Garrison 11173 | -7/Factory | Entered Garrison 11173 | -7/Garrison | Accompanied by 5 allies 11276 | -7/Garrison | Triggered checkpoint 11370 | -7/Garrison | Garrison Relay disabled 11692 | -7/Garrison | Build established: Commander-Mutant 11696 | -7/Garrison | Triggered checkpoint 11962 | -7/Garrison | Discovered new exit (range 15) 12014 | -7/Garrison | Triggered checkpoint 12075 | -7/Garrison | Phase Generator disabled 12128 | -7/Garrison | Garrison Relay disabled 12216 | -7/Garrison | Triggered checkpoint 12260 | -7/Garrison | Triggered checkpoint 12308 | -7/Garrison | Discovered new exit (range 8) 12473 | -7/Garrison | Discovered new exit (range 12) 12503 | -7/Garrison | Expanded RIF knowledge: Structural Interface 12756 | -7/Garrison | Triggered checkpoint 12788 | -7/Garrison | Garrison Relay disabled 13198 | -7/Garrison | Triggered checkpoint 13205 | -7/Garrison | Core integrity fell below 50% 13252 | -7/Garrison | Garrison Relay disabled 13733 | -7/Garrison | Build established: Botlord-Mutant 14081 | -7/Garrison | Entered Factory 14081 | -6/Factory | Accompanied by 13 allies 14081 | -6/Factory | Evolved 2 slots: Utility x2 14326 | -6/Factory | Found Prototype Launcher 14326 | -6/Factory | Identified Rocket Array 14452 | -6/Factory | Discovered new exit (range 4) 14489 | -6/Factory | Discovered new exit (range 13) 14599 | -6/Factory | Assembled infested ambush trap array 14773 | -6/Factory | Build established: Botlord-Gunner 15131 | -6/Factory | First assault squad dispatched 15364 | -6/Factory | Lost 4 parts (1n2u1w) 15540 | -6/Factory | Spotted B-75 Beast 15543 | -6/Factory | Assimilated Beast 5a with formatsys_high 15661 | -6/Factory | Discovered new exit (range 14) 15756 | -6/Factory | Found Hvy. Reactive Plating 16116 | -6/Factory | Identified exit to Garrison 16170 | -6/Factory | Entered Garrison 16170 | -6/Garrison | Accompanied by 5 allies 16188 | -6/Garrison | Triggered checkpoint 16484 | -6/Garrison | Triggered checkpoint 16825 | -6/Garrison | Build established: Scavenger-Mutant 17026 | -6/Garrison | Garrison Relay disabled 17112 | -6/Garrison | Triggered checkpoint 17265 | -6/Garrison | Triggered checkpoint 17266 | -6/Garrison | Triggered checkpoint 17300 | -6/Garrison | Destroyed 8 combat bots 17592 | -6/Garrison | Garrison Relay disabled 17600 | -6/Garrison | Triggered checkpoint 17660 | -6/Garrison | Discovered new exit (range 15) 17992 | -6/Garrison | Discovered new exit (range 10) 18019 | -6/Garrison | Expanded RIF knowledge: Autooverride 18066 | -6/Garrison | Triggered checkpoint 18125 | -6/Garrison | Garrison Relay disabled 18290 | -6/Garrison | Triggered checkpoint 18356 | -6/Garrison | Build established: Commander-Mutant 18526 | -6/Garrison | Discovered new exit (range 10) 18581 | -6/Garrison | Garrison Relay disabled 19400 | -6/Garrison | Triggered checkpoint 19424 | -6/Garrison | Build established: Botlord-Mutant 20235 | -6/Garrison | Entered Factory 20235 | -5/Factory | Accompanied by 5 allies 20235 | -5/Factory | Evolved 2 slots: Utility x2 20516 | -5/Factory | Allied Derelicts emerged from ambush trap array 20535 | -5/Factory | First assault squad dispatched 21023 | -5/Factory | Found Prototype Processor 21023 | -5/Factory | Identified Exp. Signal Interpreter 21028 | -5/Factory | Found Exp. Signal Interpreter 21038 | -5/Factory | Found Exp. Signal Interpreter 21508 | -5/Factory | Discovered new exit (range 11) 21526 | -5/Factory | Identified exit to Upper Caves 21597 | -5/Factory | Entered Upper Caves 21597 | -5/Upper Caves | Accompanied by 4 allies 21609 | -5/Upper Caves | P-70 Sage assimilated allied Warrior 6a 21624 | -5/Upper Caves | P-70 Sage assimilated allied Sentinel 6e 21764 | -5/Upper Caves | Build established: Bothacker-Mutant 21809 | -5/Upper Caves | Encountered a Warlord checkpoint 22043 | -5/Upper Caves | Discovered new exit (range 12) 22099 | -5/Upper Caves | Identified exit to Upper Caves 22108 | -5/Upper Caves | Entered another Upper Caves area 22108 | -5/Upper Caves | Accompanied by 2 allies 22154 | -5/Upper Caves | Discovered new exit (range 9) 22173 | -5/Upper Caves | Identified exit to Factory 22648 | -5/Upper Caves | Discovered new exit (range 6) 22662 | -5/Upper Caves | Identified exit to Warlord 22666 | -5/Upper Caves | Entered Warlord 22666 | -5/Warlord | Accompanied by 1 ally 22719 | -5/Warlord | Discovered new exit (range 8) 22733 | -5/Warlord | Identified exit to Proximity Caves 22738 | -5/Warlord | Entered Proximity Caves 22738 | -4/Proximity Caves | Accompanied by 1 ally 23087 | -4/Proximity Caves | Spotted B-86 Titan 23114 | -4/Proximity Caves | Assimilated Titan 7a with formatsys_high 23198 | -4/Proximity Caves | Attracted the attention of an 0b10 checkpoint 23321 | -4/Proximity Caves | Discovered exit to Factory (range 15) 23421 | -4/Proximity Caves | Build established: Hauler-Mutant 23436 | -4/Proximity Caves | Entered Factory 23436 | -4/Factory | Accompanied by 1 ally 23436 | -4/Factory | Evolved 2 slots: Propulsion x1, Weapon x1 23729 | -4/Factory | Discovered new exit (range 14) 23755 | -4/Factory | Identified exit to Extension 23771 | -4/Factory | Entered Extension 23771 | -4/Extension | Accompanied by 1 ally 23793 | -4/Extension | Build established: Hauler-Gunner 23844 | -4/Extension | Energy Cycler disabled 23844 | -4/Extension | Rescued a captive Derelict 23844 | -4/Extension | Rescued a captive Derelict 23845 | -4/Extension | Rescued a captive Derelict 23845 | -4/Extension | Rescued a captive Derelict 23847 | -4/Extension | Rescued a captive Derelict 23848 | -4/Extension | Rescued a captive Derelict 23851 | -4/Extension | Rescued a captive Derelict 23852 | -4/Extension | Rescued a captive Derelict 23853 | -4/Extension | Rescued a captive Derelict 23862 | -4/Extension | Rescued a captive Derelict 24027 | -4/Extension | Disrupted transfer network 24240 | -4/Extension | Crushed by falling debris 24304 | -4/Extension | Lost 5 parts (1n2u2w) 24729 | -4/Extension | Discovered new exit (range 10) 24730 | -4/Extension | Discovered new exit (range 6) 24734 | -4/Extension | Extracted ID and sensor layout for unrecognized location from A7's data core 24742 | -4/Extension | Identified exit to Cetus 24747 | -4/Extension | Entered Cetus 24747 | -4/Cetus | Accompanied by 4 allies 24771 | -4/Cetus | Spotted Cetus Guard 24776 | -4/Cetus | Destroyed Cetus Guard 24777 | -4/Cetus | Spotted Cetus Guard 24777 | -4/Cetus | Spotted Cetus Guard 24782 | -4/Cetus | Destroyed Cetus Guard 24782 | -4/Cetus | Spotted Cetus Guard 24783 | -4/Cetus | Destroyed Cetus Guard 24788 | -4/Cetus | Destroyed Cetus Guard 24829 | -4/Cetus | Build established: Hauler-Mutant 24830 | -4/Cetus | Destroyed 7 combat bots 25089 | -4/Cetus | Discovered new exit (range 16) 25114 | -4/Cetus | Identified exit to Archives 25116 | -4/Cetus | Entered Archives 25330 | -4/Archives | Build established: Hauler-Gunner 26648 | -4/Archives | Discovered new exit (range 15) 26662 | -4/Archives | Discovered new exit (range 16) 26721 | -4/Archives | Unable to access archive contents 26725 | -4/Archives | Discovered new exit (range 16) 26750 | -4/Archives | Identified exit to Research 26752 | -4/Archives | Entered Research 26752 | -3/Research | Evolved 2 slots: Power x1, Utility x1 26753 | -3/Research | Identified exit to Armory 26969 | -3/Research | Lost 3 parts (2u1w) 27285 | -3/Research | Build established: Scavenger-Tank 27307 | -3/Research | Identified exit to Quarantine 27503 | -3/Research | Destroyed 7 combat bots 27505 | -3/Research | Lost 6 parts (2p2u2w) 27689 | -3/Research | Spotted B-86 Titan 27722 | -3/Research | Destroyed B-86 Titan 27749 | -3/Research | Lost 3 parts (1p2w) 27846 | -3/Research | Spotted B-86 Titan 27980 | -3/Research | Destroyed B-86 Titan 28009 | -3/Research | Lost 7 parts (1p1n5u) 28146 | -3/Research | System corruption reached 10% 28185 | -3/Research | Lost 6 parts (1n2u3w) 28942 | -3/Research | Garrison activated, responded to threat 29457 | -3/Research | Entered Quarantine 29589 | -3/Quarantine | Build established: Scavenger-Skirmisher 29630 | -3/Quarantine | Scanned by Researcher 29775 | -3/Quarantine | Spotted Alpha 7 29837 | -3/Quarantine | Found Alien Launcher 30167 | -3/Quarantine | Found Alien Artifact 30168 | -3/Quarantine | Identified Stasis Generator 30309 | -3/Quarantine | Discovered new exit (range 11) 30351 | -3/Quarantine | Identified exit to Research 30379 | -3/Quarantine | Found Alien Artifact 30379 | -3/Quarantine | Identified Terrabomb 30379 | -3/Quarantine | Used Terrabomb 30437 | -3/Quarantine | Found Terrabomb 30628 | -3/Quarantine | Found Alien Artifact 30628 | -3/Quarantine | Identified Subatomic Replicator 30810 | -3/Quarantine | Found Alien Slashing Weapon 30810 | -3/Quarantine | Identified Sigix Broadsword 31007 | -3/Quarantine | First assault squad dispatched 31018 | -3/Quarantine | Found Prototype Processor 31019 | -3/Quarantine | Identified Exp. Melee Analysis Suite 31321 | -3/Quarantine | Spotted Fortress 31717 | -3/Quarantine | Identified Sigix Terminator 31761 | -3/Quarantine | Fired Sigix Terminator 31874 | -3/Quarantine | Core integrity fell below 50% 31883 | -3/Quarantine | Lost 14 parts (1p3n5u5w) 32075 | -3/Quarantine | Lost 8 parts (1p1n6w) 32262 | -3/Quarantine | Crushed by falling debris 32286 | -3/Quarantine | Crushed by falling debris 32289 | -3/Quarantine | Crushed by falling debris 32290 | -3/Quarantine | Build established: Hauler-Mutant 32290 | -3/Quarantine | System corruption reached 30% 32320 | -3/Quarantine | Lost 10 parts (1p3n4u2w) 32378 | -3/Quarantine | Core integrity fell below 20% 32416 | -3/Quarantine | Discovered new exit (range 6) 32427 | -3/Quarantine | Entered Section 7 32612 | -3/Section 7 | Scanned by Researcher 32617 | -3/Section 7 | Destroyed by Y-72 Warden with Quantum Rifle Last Messages --------------- 32606_ System corrupted: Component data lost. 32608_ Penetrated by Slug. 32608_ Arm. Medium Treads destroyed. 32608_ Slug penetrates C-55 Analyst. 32611_ Slammed into Y-72 Warden. 32611_ Penetrated by Slug. 32612_ C-55 Analyst calls for reinforcements. 32612_ ALERT: Hostile activity reported, dispatching reinforcements to area. 32612_ Held in stasis. 32612_ C-55 Analyst is analyzing... 32612_ ALERT: Modified LRC-V3 signature confirmed. [Achievement: Signature Confirmed] 32614_ Penetrated by Slug. 32615_ Dropped Lrg. Storage Unit. 32615_ Held in stasis. 32615_ C-55 Analyst is analyzing... 32616_ Jacked Y-72 Warden... >>parse_system Reading system data... Map ----- +----------------------------------------------------+ | ?????????????????????????????????????????????????? | | ?????????????????????????????????????????????????? | | ?????????????????????????????????????????????????? | | ?????????????????????????????????????????????????? | | ?????????????????????????????????????????????????? | | ????????????###??????????????????????????????????? | | ??????????### ####???????????????????????????????? | | ??????????# #???????????????????????????????? | | ??????????# """ #???????????????????????????????? | | ??????????# " " #???????????????????????????????? | | ?#????????# """ #???????????????????????????????? | | ?# ######## #???????????????????????????????? | | ?# + ########## #????????????????????? | | ##### ##### + ???????????? | | # #???# ]]] ################+###+####+??????? | | " + #???# ]] #?????# # ??????? | | " # #???# ]] %]#?????# # ?????? | | # #???# ####### # % #????? | | # ##### + + # #????? | | " # #""## # # # """ """ #????? | | " # #T"###+##### # # " " " " #????? | | " # # # """ """ #????? | | / # """R" # #????? | | " # Y " " " # " " """ #????? | | " # #!"""!" + "G" " " #????? | | " # ##########+####Y@!c # " """ #????? | | # #??????? ?#!""" " # #????? | | " |# #????? # "!" " ####### ######????? | | " # #????# # """ " #??????##?????????? | | " # #????# "" # #?????????????????? | | # #????# """ # #?????????????????? | | ##### #????# "R # #?????????????????? | | ????# #????# """ #########?????????????????? | | ????# #????#??"" #?????????????????????????? | | ????# ####????? #?????????????????????????? | | ????# #?????######?????????????????????????? | | ????# #????????????????????????????????????? | | ????# #????????????????????????????????????? | | ????# #????????????????????????????????????? | | ????####+#####???????????????????????????????????? | | ????# #???????????????????????????????????? | | ????# """ #???????????????????????????????????? | | ????# """ #???????????????????????????????????? | | ????#!== R" #???????????????????????????????????? | | ????#!== """ #???????????????????????????????????? | | ????#!== #???????????????????????????????????? | | ????# #???????????????????????????????????? | | ????# #???????????????????????????????????? | | ????# #???????????????????????????????????? | | ????##########???????????????????????????????????? | +----------------------------------------------------+ Best States ------------- Heat Dissipation 103 Coolant Potential 100 Energy Generation 39 Energy Capacity 2020 Matter Stores 480 Matter Capacity 550 Sight Range 16 Robot Scan Range 16 Terrain Scan Density 10 Power Amplification 30 EM Shielding 4 Armor Coverage 1200 Resistance: KI 40 Resistance: TH 30 Resistance: EM 25 Power Shielding 33 Utility Shielding 66 Weapon Shielding 66 Weapon Cycling 15 Phase Shifting 10 Evasion (%) 50 Targeting Accuracy 16 Melee Accuracy 12 Target Analysis 8 Recoil Reduction 4 Offensive Hacking 12 Defensive Hacking 10 Relay Coupler Types 82 Relay Coupler Value 3 Item Schematics ----------------- EMP Blaster | -8/Materials | Scanalyzed Imp. Proton Missile Launcher | -4/Factory | Scanalyzed Robot Schematics ------------------ H-66 Slayer | -6/Factory | Hacked Fabricated ------------ Nothing Alien Tech Used ----------------- Stasis Generator Terrabomb Subatomic Replicator Sigix Broadsword Sigix Terminator Achievements -------------- Nope Signature Confirmed Challenges ------------ None Game ------ Seed AbsorptionArmoredRigger Manual? 0 Play Time 03:51:58 Cumulative 83.8 hours Start 2021.05.17 @ 11:13:00 End 2021.05.18 @ 12:51:58 Sessions 5 Manual Loads 0 Difficulty Rogue Special Mode None Game No. 134 Rogue 122 Adventurer 4 Explorer 8 Win Type - Total 6 Types 5/0/0/1/0/0/0/0/0 Lore% 56 Gallery% 74 Achievement% 54 Wizard Run 0 Options --------- ASCII 0 Keyboard 1 Movement Numpad Keybinds 0 Fullscreen 1 Font 16/Terminus Map View 76x50 Tactical HUD 1 Map Filters NONE Filters NONE Steam 1 RUN: ada2c5a5-e975-42ba-a512-4ff213727080